Cogmind - Beta 13 @@@ ROGUE MODE // 2024.04.04 @ 22:48:15 Player: Tesserakt Result: Destroyed by G-47 Trooper with Particle Gun Performance ------------- Evolutions (2) 1000 Regions Visited (3) 600 Robots Destroyed (69) 345 Value Destroyed (1398) 1398 Prototype IDs (5) 100 Alien Tech Used (0) 0 Bonus (-7) -7 TOTAL SCORE: 3436 Bonus ------- Friendly Fire -7 Cogmind --------- Core Integrity 0/550 Matter 205/300 Energy 94/200 System Corruption 2% Temperature Cool (55) Movement Core (350) Ox6 Location -8/Materials Parts ------- > --- POWER (1) -------- Subdweller Power Source > --- PROPULSION (4) --- Improved VTOL Module > --- UTILITY (4) ------ Terrain Scan Processor Transport Network Coupler ECM Suite > --- WEAPON (2) ------- EM Pulse Cannon EM Pulse Cannon > --- INVENTORY (5) ---- Light Angular Momentum Engine Precision Beam Rifle Advanced Beam Rifle Peak State ------------ > --- POWER ------------ Light Nuclear Core > --- PROPULSION ------- Carbon-fiber Leg Carbon-fiber Leg Carbon-fiber Leg Carbon-fiber Leg > --- UTILITY ---------- Humpback Improved Signal Interpreter Core Shielding > --- WEAPON ----------- Subdweller Machine Gun Katana > --- INVENTORY -------- Subdweller Power Source Subdweller Power Source Subdweller Power Source Subdweller Power Source Subdweller Power Source Light Angular Momentum Engine Light Treads Light Treads Carbon-fiber Leg Wheel Subdweller Monowheel Subdweller Monowheel Improved Heat Sink Improved Heat Sink Disposable Heat Sink Disposable Heat Sink Disposable Heat Sink Disposable Heat Sink Medium Battery Medium Battery Subdweller Optics Subdweller Optics Improved Terrain Scanner Seismic Detector Improved Targeting Computer Subdweller Laser Subdweller Beam Cannon Heavy Assault Rifle Battle Rifle Battle Cannon Hammer Mining Claw Scrap Shield Fragment Scrap Shield Fragment Scrap Shield Fragment [Rating: 32] Favorites ----------- Power Subdweller Power Source Engine Subdweller Power Source Power Core Light Nuclear Core Propulsion Light Treads Treads Light Treads Leg Carbon-fiber Leg Wheel Subdweller Monowheel Hover Unit Hover Unit Flight Unit Improved VTOL Module Utility Humpback Device Improved Terrain Scanner Storage Humpback Processor Terrain Scan Processor Hackware System Shield Protection Scrap Shield Weapon Subdweller Machine Gun Energy Gun Small Laser Energy Cannon Beam Cannon Ballistic Gun Subdweller Machine Gun Ballistic Cannon Battle Cannon Launcher Grenade Launcher Special Weapon Plasma Cutter Impact Weapon Hammer Slashing Weapon Katana Special Melee Weapon Datajack Build | -11 -10 -10 -8 ------- Run | Yrd Mat Sub Mat Slots Evolved 4 | . . . 4 Power . | . . . . Propulsion 2 | . . . 2 Utility 2 | . . . 2 Weapon . | . . . . Parts Attached 137 | 8 23 11 95 Power 12 | 1 1 2 8 Engine 10 | 1 1 2 6 Core 2 | . . . 2 Reactor . | . . . . Propulsion 29 | 2 2 3 22 Treads 11 | 2 1 . 8 Leg 6 | . . . 6 Wheel 10 | . . 3 7 Hover 1 | . 1 . . Flight 1 | . . . 1 Utility 50 | 3 10 3 34 Device 28 | 2 5 1 20 Storage 8 | 1 4 1 2 Processor 5 | . 1 . 4 Hackware 1 | . . . 1 Protection 8 | . . 1 7 Artifact . | . . . . Weapon 46 | 2 10 3 31 Energy Gun 15 | 2 5 1 7 Energy Cannon 6 | . . . 6 Ballistic Gun 18 | . 3 1 14 Ballistic Cannon 1 | . . 1 . Launcher 1 | . 1 . . Special Weapon 1 | . . . 1 Impact Weapon 1 | . . . 1 Slashing Weapon 2 | . . . 2 Piercing Weapon . | . . . . Special Melee Weapon 1 | . 1 . . Unidentified Prototypes 5 | . . . 5 Parts Lost 34 | . 8 4 22 Power 4 | . 1 . 3 Propulsion 12 | . 3 1 8 Utility 9 | . . 1 8 Weapon 9 | . 4 2 3 Highest Loss Streak 11 | . 4 4 11 To Critical Strikes . | . . . . Average Slot Usage (%) 79 | . 93 69 82 Engine 9 | . 13 14 5 Core 1 | . . . 3 Treads 7 | . 21 . 8 Leg 4 | . . . 8 Wheel 7 | . . 11 6 Flight 1 | . . . 3 Device 7 | . 19 . 9 Storage 6 | . 6 12 3 Processor 5 | . 1 . 9 Hackware 2 | . . . 4 Protection 1 | . . 1 2 Energy Gun 6 | . 9 8 3 Energy Cannon 1 | . . . 1 Ballistic Gun 11 | . 12 13 9 Ballistic Cannon 2 | . . 5 1 Naked Turns . | . . . . Heaviest Build 230 | 13 11 213 230 Greatest Support 72 | 40 40 40 72 Greatest Overweight (x) 70 | . 3 70 11 Average Overweight (x) 2 | . . 10 . Largest Inventory Capacity 35 | 8 5 35 35 Average Capacity 18 | 6 5 31 15 Most Carried 35 | 7 5 35 35 Average Carried 13 | 4 4 16 14 Final Capacity 35 | 5 5 35 5 Final Carried 34 | 4 4 34 3 Class Distribution -------------------- 46% | Hauler-Mutant 31% | Mutant 22% | Scavenger-Mutant Dominant Class ---------------- Mutant | -10/Materials Hauler-Mutant | -10/Subcaves Scavenger-Mutant | -8/Materials Resources | -11 -10 -10 -8 ----------- Run | Yrd Mat Sub Mat Matter Collected 2195 | 280 208 195 1512 Remotely 532 | . . . 532 Salvage Created 2366 | 170 483 . 1713 Parts 126 | 14 37 . 75 Haulers Intercepted 4 | . 1 . 3 Recyclers Shooed 4 | . . . 4 Parts Field Recycled . | . . . . Retrieved Matter . | . . . . Parts Self-Destructed . | . . . . Prevented . | . . . . Kills | -11 -10 -10 -8 ------- Run | Yrd Mat Sub Mat Combat Hostiles Destroyed 31 | . 9 . 22 Melee 1 | . . . 1 Guns 19 | . 4 . 15 Cannons 6 | . . . 6 AOE 5 | . 5 . . Classes Destroyed 11 | 3 6 . 2 Worker 9 | 2 2 . 5 Builder 5 | . 4 . 1 Tunneler 4 | 3 1 . . Hauler 4 | . 1 . 3 Recycler 11 | 1 2 . 8 Operator 1 | . 1 . . Watcher 4 | . 2 . 2 Swarmer 8 | . 3 . 5 Grunt 18 | . 6 . 12 Duelist 1 | . . . 1 Sentry 4 | . . . 4 Best Kill Streak 9 | 2 9 . 4 Combat Bots Only 4 | . 3 . 4 Max Kills in Single Turn 4 | 1 4 . 1 Gunslinging . | . . . . Exploded 3 | . 3 . . Melee 1 | . . . 1 Uniques/NPCs Destroyed . | . . . . Combat | -11 -10 -10 -8 -------- Run | Yrd Mat Sub Mat Hostile Shots Fired 411 | . 93 24 294 Missed 108 | . 26 6 76 Damage Taken 4838 | . 946 388 3504 Core 770 | . 184 22 564 Absorbed by Shields . | . . . . Redirected to Shielding 39 | . . . 39 Core Remaining (%) 58 | 100 . 17 . Volleys Fired 227 | 17 37 12 161 Largest 2 | 2 2 2 2 Hottest 140 | 80 80 69 140 Shots Fired 403 | 34 60 20 289 Gun 336 | 34 52 19 231 Cannon 59 | . . 1 58 Launcher 8 | . 8 . . Special . | . . . . Kinetic 250 | . 25 13 212 Thermal 125 | 34 14 7 70 Explosive 8 | . 8 . . Electromagnetic 20 | . 13 . 7 Robot Hit Streak 15 | 10 5 6 15 Robot Miss Streak 7 | 3 5 2 7 Penetration Max . | . . . . Secondary Targets 3 | . . . 3 Max Gunslinging Chain 1 | . . . 1 Shots Hit Robots 264 | 22 34 13 195 Core Hits 108 | 7 33 4 64 Critical Kills 1 | . . . 1 Critical Parts Destroyed 2 | . . 1 1 Critical Strikes 8 | . . 1 7 Burn 1 | . . . 1 Destroy 3 | . . 1 2 Blast 3 | . . . 3 Sever 1 | . . . 1 Melee Attacks 20 | . 8 . 12 Impact 1 | . . . 1 Slashing 11 | . . . 11 Piercing . | . . . . Sneak Attacks 5 | . 3 . 2 Combat Hostiles . | . . . . Follow-up Attacks 1 | . . . 1 Damage Inflicted 5747 | 251 1344 115 4037 Guns 3452 | 251 286 115 2800 Cannons 863 | . . . 863 Explosions 1058 | . 1058 . . Melee 348 | . . . 348 Ramming 26 | . . . 26 Kinetic 2787 | . 97 62 2628 Thermal 1537 | 251 300 53 933 Explosive 864 | . 864 . . Electromagnetic 185 | . 83 . 102 Impact 33 | . . . 33 Slashing 315 | . . . 315 Piercing . | . . . . Highest Corruption 2 | . . . 2 Average Corruption 2 | . . . 2 Corruption Purged . | . . . . Corruption Blocked . | . . . . Effects 16 | . . . 16 Message Errors 2 | . . . 2 Matter Fused 8 | . . . 8 Energy Discharges 2 | . . . 2 Data Loss (minor) 3 | . . . 3 Weapon Failures 1 | . . . 1 Overload Shots . | . . . . Overflow Damage 171 | . 157 . 14 Projectiles 14 | . . . 14 Explosions 157 | . 157 . . Melee . | . . . . Knockbacks 6 | . . . 6 Impact . | . . . . Kinetic 6 | . . . 6 Secondary . | . . . . Self-Inflicted Damage 178 | . 169 . 9 Shots 5 | . 5 . . Rammed 6 | . . . 6 Targets Rammed 6 | . . . 6 Kicked . | . . . . Crushed . | . . . . Highest Temperature 388 | 126 66 5 388 Average Temperature 52 | 41 21 5 61 Received Heat Transfer 2109 | . 360 75 1674 Effects 3 | . . . 3 Interference 2 | . . . 2 Damage (minor) 1 | . . . 1 Siege Activations . | . . . . Robots Corrupted . | . . . . Combat Hostiles . | . . . . Parts Fried . | . . . . Impact Corruptions . | . . . . Robots Melted . | . . . . Combat Hostiles . | . . . . Parts Melted 6 | . 1 . 5 Heat Transferred 2753 | 575 350 125 1703 Parts Sabotaged . | . . . . Parts Stolen . | . . . . Parts Stripped . | . . . . Power Chain Reactions 1 | . 1 . . Alert | -11 -10 -10 -8 ------- Run | Yrd Mat Sub Mat Peak Influence 265 | 30 188 . 265 Initial 19 | . 19 . . Average 100 | 11 111 . 107 Maximum Alert Level 1 | . . . 1 Low Security (%) 94 | 100 100 . 92 Level 1 5 | . . . 7 Level 2 . | . . . . Level 3 . | . . . . Level 4 . | . . . . Level 5 . | . . . . High Security . | . . . . Max Security . | . . . . Squads Dispatched 9 | . 1 . 8 Investigation 4 | . 1 . 3 Extermination . | . . . . Reinforcement 1 | . . . 1 Assault . | . . . . Garrison 4 | . . . 4 Intercept . | . . . . Searches Triggered . | . . . . Construction Impeded . | . . . . Haulers Reinforced . | . . . . Active Scanning Responses . | . . . . Cargo Convoy Interrupts . | . . . . Stealth | -11 -10 -10 -8 --------- Run | Yrd Mat Sub Mat Distress Signals 5 | . 2 . 3 Communications Jammed . | . . . . Distress Signals . | . . . . Times Spotted 71 | . 15 13 43 Peak Tracking Total 7 | . 5 5 7 Tactical Retreats 6 | . 1 . 5 Traps | -11 -10 -10 -8 ------- Run | Yrd Mat Sub Mat Traps Triggered 3 | . 1 . 2 Indirectly . | . . . . Trap Hack Attempts . | . . . . Triggered . | . . . . Disarmed . | . . . . Reprogrammed . | . . . . Reused . | . . . . Traps Extracted . | . . . . Installed . | . . . . Triggered . | . . . . Machines | -11 -10 -10 -8 ---------- Run | Yrd Mat Sub Mat Machines Disabled 6 | . 2 . 4 Max in Single Turn 2 | . 2 . 1 Machines Repaired . | . . . . Machines Dismantled . | . . . . Machines Sabotaged . | . . . . Overloaded Fab Kills . | . . . . Hacking | -11 -10 -10 -8 --------- Run | Yrd Mat Sub Mat Machines Accessed 6 | . 1 1 4 Terminals 4 | . 1 . 3 Fabricators . | . . . . Repair Stations . | . . . . Recycling Units 1 | . . . 1 Scanalyzers . | . . . . Garrison Access . | . . . . Total Hacks 31 | . 3 5 23 Successful 15 | . . 5 10 Failed 13 | . 3 . 10 Catastrophic 3 | . 1 . 2 Database Lockouts 3 | . . . 3 Manual 7 | . 1 3 3 Terminals 24 | . 3 . 21 Fabricators . | . . . . Repair Stations . | . . . . Recycling Units 2 | . . . 2 Scanalyzers . | . . . . Garrison Access . | . . . . Terminal Hacks 14 | . . 5 9 Record 13 | . . 5 8 Level Access Points 1 | . . . 1 Fabricator Hacks . | . . . . Repair Station Hacks . | . . . . Recycling Unit Hacks 1 | . . . 1 Report Inventory 1 | . . . 1 Scanalyzer . | . . . . Garrison Access Hacks . | . . . . Unauthorized Hacks . | . . . . Terminals . | . . . . Fabricators . | . . . . Repair Stations . | . . . . Recycling Units . | . . . . Scanalyzers . | . . . . Garrison Access . | . . . . Data Cores Recovered 1 | . 1 . . Used . | . . . . Hacking Detections 4 | . 1 . 3 Full Trace Events 4 | . 1 . 3 Feedback Events . | . . . . Feedback Blocked . | . . . . Robot Schematics Acquired . | . . . . Robots Built . | . . . . Authchips . | . . . . Time . | . . . . Total Robot Build Rating . | . . . . Part Schematics Acquired . | . . . . Parts Built . | . . . . Authchips . | . . . . Time . | . . . . Total Part Build Rating . | . . . . Parts Repaired . | . . . . Time . | . . . . Parts Recycled . | . . . . Recycled Matter . | . . . . Retrieved Matter . | . . . . Retrieved Components . | . . . . Parts Scanalyzed . | . . . . Part Schematics Acquired . | . . . . Parts Damaged . | . . . . Bothacking | -11 -10 -10 -8 ------------ Run | Yrd Mat Sub Mat Used RIF Installer . | . . . . Robots Hacked 3 | . 3 . . Non-combat 3 | . 3 . . Combat . | . . . . Robot Hacks Applied 6 | . 6 . . parse_system 3 | . 3 . . no_distress 3 | . 3 . . Relay Couplers Released . | . . . . Fabnet Peak Effective % . | . . . . Robots Rewired . | . . . . Allies Hacked . | . . . . Hacks Repelled . | . . . . Allies | -11 -10 -10 -8 -------- Run | Yrd Mat Sub Mat Total Allies . | . . . . Largest Group . | . . . . Highest-Rated Group . | . . . . Highest-Rated Ally . | . . . . Total Orders . | . . . . Ally Attacks . | . . . . Total Damage . | . . . . Kills . | . . . . Allies Corrupted . | . . . . Allies Melted . | . . . . Intel | -11 -10 -10 -8 ------- Run | Yrd Mat Sub Mat Robot Analysis Total . | . . . . Derelict Logs Recovered . | . . . . Drone Launches . | . . . . Drone Recoveries . | . . . . Exploration | -11 -10 -10 -8 ------------- Run | Yrd Mat Sub Mat Turns Passed 4755 | 272 556 1542 2385 Spaces Moved 1797 | 125 261 393 1018 Core 96 | 3 17 37 39 Treads 745 | 122 188 . 435 Legs 110 | . . . 110 Wheels 740 | . . 312 428 Hover 100 | . 56 44 . Flight 6 | . . . 6 Fastest Speed 50 | 50 120 100 100 Average Speed 208 | 157 154 369 165 Slowest Speed 3550 | 160 200 3550 560 Overloaded Moves . | . . . . Propulsion Burnouts . | . . . . Robots Hopped . | . . . . Cave-ins Triggered . | . . . . Exploration Rate (%) 25 | 8 32 16 46 Regions Visited 3 Branch Regions 1 Pre-discovered Areas 1 | . . 1 . Known Exits Taken . | . . . . Unknown Exits Taken 3 | 1 1 1 . Scrap Searched . | . . . . Spaces Dug . | . . . . Terrain Destroyed 72 | . 56 . 16 Melee . | . . . . Projectile 16 | . . . 16 AOE 56 | . 56 . . Terrain Rammed . | . . . . Walls Destroyed . | . . . . Machines Disabled . | . . . . Actions | -11 -10 -10 -8 --------- Run | Yrd Mat Sub Mat Total 2403 | 166 353 466 1418 Wait 7 | 2 4 1 . Move 1794 | 124 260 392 1018 Hop . | . . . . Pick Up 135 | 14 14 40 67 Fast Attach 10 | . . 3 7 Attach 51 | 7 10 6 28 Detach . | . . . . Swap 76 | 1 13 2 60 Drop 74 | 1 7 10 56 Fire 227 | 17 37 12 161 Melee 19 | . 8 . 11 Ram 5 | . . . 5 Kick . | . . . . Crush 1 | . . . 1 Escape Stasis . | . . . . Rewire . | . . . . Trap . | . . . . Miscellaneous 4 | . . . 4 Route ------- -11/Scrapyard -10/Materials (discovered 2 exits: [*Min] / *Sub) -10/Subcaves -8/Materials (discovered 3 exits: Fac x3) History --------- Turn | Location | Event 9 | -11/Scrapyard | Discovered new exit (range 16) 273 | -11/Scrapyard | Entered Materials 310 | -10/Materials | Build established: Mutant 443 | -10/Materials | Discovered new exit (range 16) 511 | -10/Materials | Lost 3 parts (1n2w) 720 | -10/Materials | Core integrity fell below 50% 723 | -10/Materials | Lost 4 parts (1p2n1w) 796 | -10/Materials | Discovered new exit (range 11) 829 | -10/Materials | Entered Subcaves 972 | -10/Subcaves | Ambushed by swarm of Subdwellers 972 | -10/Subcaves | Ambushed by Subdwellers from Twisted Machinery 973 | -10/Subcaves | Core integrity fell below 20% 975 | -10/Subcaves | Ambushed by Subdwellers from Twisted Machinery 1021 | -10/Subcaves | Lost 4 parts (1n1u2w) 1291 | -10/Subcaves | Build established: Hauler-Mutant 1872 | -10/Subcaves | A swath of the cavern ceiling suddenly collapsed 1940 | -10/Subcaves | Visited Clippyterm 1945 | -10/Subcaves | Learned location of Extension (-5) 1945 | -10/Subcaves | Learned 40 Factory zone layouts 1945 | -10/Subcaves | Learned Factory emergency access door positions 1995 | -10/Subcaves | Shifting Twisted Machinery released Sub. Monowheel 2021 | -10/Subcaves | Discovered new exit (range 8) 2371 | -10/Subcaves | Entered Materials 2371 | -8/Materials | Evolved 4 slots: Propulsion x2, Utility x2 2468 | -8/Materials | Garrison activated, responded to threat 2544 | -8/Materials | Central database locked down 2544 | -8/Materials | Central database locked down 2544 | -8/Materials | Central database locked down 3221 | -8/Materials | Core integrity fell below 50% 3245 | -8/Materials | Lost 11 parts (2p4n4u1w) 3590 | -8/Materials | Identified exit to Factory 3608 | -8/Materials | Build established: Scavenger-Mutant 4445 | -8/Materials | Core integrity fell below 20% 4479 | -8/Materials | Lost 3 parts (1n2u) 4717 | -8/Materials | Garrison activated, responded to threat 4756 | -8/Materials | Destroyed by G-47 Trooper with Particle Gun Last Messages --------------- 04637_ Acquired Lgt. Treads. 04643_ Dropped Hvy. Armor Plating. 04645_ Acquired Transport Network Coupler. 04706_ O-24 Administrator: "IFF HANDSHAKE FAILED. SECURING TERMINAL." 04710_ ALERT: Hostiles spotted, dispatching reinforcements to Terminal M005. 04715_ Destroyed Weight Redist. System. 04717_ Destroyed Lgt. Treads. 04717_ A-02 Transporter calls for garrison support. 04717_ ALERT: Activating Garrison Access M001. 04720_ Destroyed Ion Engine. 04723_ A-02 Transporter destroyed. 04731_ System corrupted: Component data lost. 04740_ Minigun destroyed. 04744_ Lgt. Treads destroyed. 04748_ K-01 Serf collects debris. 04751_ O-24 Administrator destroyed. 04752_ Lgt. Treads destroyed. 04752_ K-01 Serf collects debris. 04752_ Imp. Heat Sink destroyed. Map ----- +----------------------------------------------------+ | ?????????????????????????????????????????????????? | | ?????????????????????????????????????????????????? | | #?????????????????????????